bitfinex/quotes_ETHUSD_20250411
["timestamp","ask_amount","ask_price","bid_price","bid_amount"]
[1744381578136,0.0645461,1548.7,1548.4,6.45805]
[1744381578304,6.5216861,1548.7,1548.3,6.5793929]
[1744381578622,6.5216861,1548.7,1547.5,6.46199]
[1744381578623,1.5287,1548.1,1547.5,6.46199]
[1744381578823,0.0645461,1548.0,1547.4,6.46236]
[1744381579022,6.46173,1547.6,1547.3,0.394617]
[1744381579323,0.86982871,1548.0,1547.3,0.394617]
[1744381579324,6.46245,1547.4,1547.3,0.394617]
[1744381579525,6.46105,1547.8,1547.4,6.46231]
[1744381579526,1.5039,1547.6,1547.4,6.46231]
[1744381579731,0.0645461,1547.7,1547.4,6.4623]
[1744381580036,6.46094,1547.8,1547.5,6.46199]
[1744381580037,6.5254861,1547.8,1547.5,6.46199]
[1744381580234,6.5254861,1547.8,1547.3,0.394617]
[1744381580235,2.48802571,1547.8,1547.3,0.394617]
[1744381580436,6.46148,1547.7,1547.3,6.857297]
[1744381580642,0.0645461,1547.6,1547.3,0.394617]
[1744381580799,7.32986871,1548.0,1547.5,1.5225]
[1744381581000,12.9847061,1548.0,1547.6,6.46159]
[1744381581247,12.9847061,1548.0,1547.6,12.92305]
[1744381581406,1.52090671,1548.0,1547.3,3.394617]
[1744381581743,6.46135,1547.7,1547.4,6.46232]
[1744381581929,0.0645461,1548.0,1547.3,0.394617]
[1744381582126,6.5244961,1548.0,1547.7,6.46105]
[1744381582436,6.46058,1547.9,1547.6,12.92294]
[1744381582652,6.5254761,1547.8,1547.5,1.5584]
[1744381582803,6.46245,1547.4,1547.3,0.394617]
[1744381583405,6.5267661,1547.5,1547.3,0.394617]
[1744381583939,0.0645461,1547.5,1547.3,6.857337]
[1744381584310,0.0645461,1547.5,1547.3,6.857297]
[1744381584511,6.46176,1547.6,1547.3,0.394617]
[1744381584746,0.0645461,1547.8,1547.5,6.46203]
[1744381584916,0.0645461,1548.0,1547.6,6.46161]
[1744381585236,0.0645461,1548.0,1547.6,6.46149]
[1744381585441,0.0645461,1548.0,1547.3,0.394617]
[1744381585442,0.0645461,1548.0,1547.7,12.92197]
[1744381585618,0.0645461,1548.0,1547.7,6.46093]
[1744381585821,0.0645461,1548.0,1547.7,12.92195]
[1744381586005,9.749,1548.5,1547.7,1.292195]
[1744381586213,1.6400461,1548.4,1547.9,6.45998]
[1744381586434,6.4575,1548.6,1547.9,1.6441]
[1744381586435,0.0645461,1548.5,1547.9,1.6441]
[1744381586743,6.5225961,1548.5,1548.1,6.45923]
[1744381586940,6.5225961,1548.5,1548.2,6.45894]
[1744381586941,0.0645461,1548.5,1548.2,6.45894]
[1744381587114,6.4584,1548.4,1548.0,6.45979]
[1744381587305,0.0645461,1548.5,1548.2,6.45911]
[1744381587514,6.45841,1548.4,1548.0,0.810389]
[1744381587704,6.45841,1548.4,1547.8,6.46071]
[1744381587705,0.0645461,1548.3,1547.8,6.46071]
[1744381588043,1.5196,1548.0,1547.3,0.394617]
[1744381588244,6.46245,1547.4,1547.3,0.394617]
[1744381588456,6.5269961,1547.4,1547.3,0.394617]
[1744381589144,16.4949961,1547.4,1547.3,0.394617]
[1744381589318,21.54821025,1547.4,1547.3,0.394617]
[1744381589510,18.00885,1547.4,1547.3,0.394617]
[1744381589708,18.00885,1547.4,1547.3,7e-06]
[1744381591246,18.00885,1547.4,1546.3,0.55]
[1744381591247,1.6163,1547.0,1546.3,0.55]
[1744381591419,1.6163,1546.4,1546.3,0.55]
[1744381591632,6.46956,1545.7,1545.6,1.01057562]
[1744381591956,16.5021061,1545.7,1545.6,1.01057562]
[1744381592153,9.968,1545.7,1545.6,1.01057562]
[1744381592450,0.0645461,1545.8,1545.5,6.47023]
[1744381592653,0.0645461,1546.0,1545.9,6.46872]
[1744381592853,10.289,1546.3,1545.8,6.41898]
[1744381592854,6.5320661,1546.2,1545.8,6.41898]
[1744381593162,6.5320661,1546.2,1545.5,7.117103]
[1744381593163,0.0645461,1546.2,1545.9,6.46868]
[1744381593326,0.0645461,1546.2,1546.0,6.46823]
[1744381593521,0.0645461,1546.2,1545.5,7.117413]
[1744381593711,0.0645461,1546.2,1545.8,6.46888]
[1744381594046,6.5320161,1546.2,1545.7,6.46951]
[1744381594233,1.5999,1546.8,1546.2,6.46719]
[1744381594550,6.5302361,1546.7,1546.3,6.4668]
[1744381594749,0.0645461,1546.7,1546.2,6.46746]
[1744381595043,0.0645461,1546.7,1546.3,7.113596]
[1744381595379,0.0645461,1546.7,1545.8,6.4691]
[1744381595380,6.4672,1546.3,1545.9,6.46869]
[1744381595550,6.5322561,1546.2,1545.8,6.46913]
[1744381595744,12.9997961,1546.2,1545.8,6.46895]
[1744381595954,6.5320361,1546.2,1545.8,6.46895]
[1744381596139,6.46815,1546.1,1545.7,8.12682]
[1744381596320,0.0645461,1546.0,1545.8,6.46912]
[1744381596520,0.0645461,1546.1,1545.9,6.46849]
[1744381596847,0.0645461,1546.2,1546.0,6.46821]
[1744381597014,0.0645461,1546.2,1546.1,6.46788]
[1744381597214,1.5434,1546.4,1546.1,6.46765]
[1744381597215,0.0645461,1546.4,1546.1,6.46765]
[1744381597612,0.0645461,1546.4,1546.2,6.4673]
[1744381597936,60.681,1546.5,1546.4,6.46663]
[1744381598128,10.291,1546.5,1546.3,6.46705]
[1744381598328,10.291,1546.5,1546.3,6.46688]
[1744381598526,0.0645461,1546.6,1546.2,6.46726]
[1744381598741,0.0645461,1546.8,1546.5,6.46621]
[1744381598940,0.0645461,1546.8,1546.4,6.46658]
[1744381598941,6.4654,1546.7,1546.3,6.46683]
[1744381599151,6.46621,1546.5,1546.1,6.46772]
[1744381599474,10.3575461,1546.4,1546.1,6.46775]
[1744381599633,10.293,1546.4,1545.9,6.46856]
[1744381599821,10.3575461,1546.4,1545.8,6.46914]
[1744381600023,10.3575461,1546.4,1546.2,6.46728]
[1744381600024,0.0645461,1546.4,1546.2,6.46728]
[1744381600331,6.46677,1546.4,1546.0,12.93632]
[1744381600654,0.0645461,1546.3,1546.0,6.4683]
[1744381600865,0.0645461,1546.3,1546.1,6.46769]
[1744381601062,6.46623,1546.5,1546.0,0.12038715]
[1744381601063,0.0645461,1546.4,1546.2,6.46724]
[1744381601225,1.5899,1547.0,1546.2,6.46724]
[1744381601577,6.5292361,1546.9,1546.6,6.46565]
[1744381601778,0.0645461,1546.9,1546.5,8.10594]
[1744381601938,6.5292261,1546.9,1546.5,8.10594]
[1744381602133,6.5292261,1546.9,1546.4,6.46659]
[1744381602134,6.46598,1546.6,1546.3,14.53257]
[1744381602336,6.5301061,1546.7,1546.3,6.46698]
[1744381602543,0.0645461,1546.7,1546.2,12.93466]
[1744381602898,11.9401,1546.6,1546.1,6.46781]
[1744381603071,6.5309161,1546.5,1546.1,6.46769]
[1744381603240,6.5309161,1546.5,1546.2,6.46731]
[1744381603565,0.0645461,1546.5,1546.2,1.293516]
[1744381603740,6.46556,1546.7,1546.3,6.46697]
[1744381603926,0.0645461,1546.6,1546.3,6.46687]
[1744381604126,0.0645461,1546.6,1546.0,1.5987]
[1744381604439,12.93215,1546.6,1546.3,6.46698]
[1744381604635,6.5299961,1546.7,1546.3,6.46694]
[1744381604824,0.0645461,1546.7,1546.0,1.5987]
[1744381605158,0.0645461,1546.7,1546.2,6.46738]
[1744381605367,0.0645461,1546.7,1546.1,6.46784]
[1744381605368,6.5299761,1546.7,1546.1,6.46784]
[1744381605537,6.46657,1546.5,1546.1,6.46784]
[1744381605738,14.6569861,1546.4,1546.0,12.93631]
[1744381605938,6.46728,1546.3,1545.8,1.6606]
[1744381606142,6.5321361,1546.2,1545.9,6.46842]
[1744381606457,6.5321361,1546.2,1545.9,6.4687]
[1744381606693,6.46803,1546.1,1545.8,8.12966]
[1744381606889,0.0645461,1546.2,1546.0,6.4679]
[1744381607043,0.0645461,1546.3,1546.1,6.46788]
[1744381607246,9.59110861,1546.4,1546.1,6.46788]
[1744381607442,9.59110861,1546.4,1546.0,6.4679]
[1744381607443,6.5317361,1546.3,1546.0,6.4679]
[1744381607672,8.52688957,1546.3,1545.9,6.46833]
[1744381607925,6.46819,1546.1,1545.8,6.469]
[1744381608090,6.5321961,1546.2,1545.8,6.469]
[1744381608290,6.46811,1546.1,1545.8,6.469]
[1744381608510,0.0645461,1546.0,1545.8,6.469]
[1744381608656,0.0645461,1546.0,1545.9,0.12174559]
[1744381608995,0.0645461,1546.0,1545.9,6.46872]
[1744381609144,0.0645461,1546.2,1545.9,13.05918559]
[1744381609347,6.5320261,1546.2,1545.9,0.12174559]
[1744381609582,6.4683,1546.0,1545.9,0.12174559]
[1744381609783,0.0645461,1546.2,1545.9,0.12174559]
[1744381609784,6.5320961,1546.2,1545.9,0.12174559]
[1744381610084,6.5320961,1546.2,1546.0,0.12087856]
[1744381610085,6.46807,1546.1,1546.0,0.12087856]
[1744381610292,0.0645461,1546.2,1546.0,6.46801]
[1744381610451,6.5323261,1546.2,1546.0,0.12087856]
[1744381610650,0.0645461,1546.2,1546.0,6.58905856]
[1744381610952,0.0645461,1546.2,1546.0,0.12087856]
[1744381610953,8.06028,1546.1,1546.0,0.12087856]
[1744381611284,6.47023,1545.6,1545.2,6.47152]
[1744381611453,54.11541261,1546.1,1545.2,6.9541291]
[1744381611454,1.6833461,1546.0,1545.2,6.9541291]
[1744381611791,14.6202561,1546.0,1545.7,6.46944]
[1744381612100,0.0645461,1545.9,1545.7,6.46943]
[1744381612277,0.0645461,1546.0,1545.8,6.46911]
[1744381612582,0.0645461,1546.0,1545.7,6.46944]
[1744381612795,6.46888,1545.9,1545.6,6.46986]
[1744381612997,12.93691,1546.0,1545.7,6.46955]
[1744381613292,12.93691,1546.0,1545.7,6.46918]
[1744381613293,0.0645461,1546.0,1545.7,6.46918]
[1744381613448,0.0645461,1546.0,1545.5,1.577]
[1744381613647,13.0014561,1546.0,1545.6,6.46986]
[1744381613897,6.4689,1545.9,1545.6,12.93972]
[1744381614053,56.88507,1546.1,1545.7,12.93883]
[1744381614250,0.0645461,1546.0,1545.8,6.46893]
[1744381614550,6.46917,1545.8,1545.5,6.47033]
[1744381614754,0.0645461,1545.7,1545.4,12.94138]
[1744381614947,6.47055,1545.5,1545.2,6.47152]
[1744381615176,6.47055,1545.5,1545.2,12.94304]
[1744381615374,0.0645461,1545.5,1545.2,12.94304]
[1744381615589,6.5350661,1545.5,1545.2,6.47152]
[1744381615791,13.0056261,1545.5,1545.2,6.47152]
[1744381616191,6.5350661,1545.5,1545.2,12.94305]
[1744381616387,0.0645461,1545.5,1545.3,6.4711]
[1744381616605,6.47004,1545.6,1545.3,6.4711]
[1744381616606,6.5345861,1545.6,1545.3,6.4711]
[1744381616774,0.0645461,1545.6,1545.4,6.47068]
[1744381616973,8.03373,1545.7,1545.4,12.94136]
[1744381617173,10.299,1545.6,1545.1,0.05]
[1744381617375,8.08285,1545.2,1545.1,1e-05]
[1744381617575,8.1473961,1545.2,1545.1,1e-05]
[1744381617789,18.4463961,1545.2,1545.1,1e-05]
[1744381617979,18.38185,1545.2,1545.1,1e-05]
[1744381618186,6.47165,1545.2,1545.1,1e-05]
[1744381618383,8.0408961,1545.2,1545.1,1e-05]
[1744381618879,7.97677,1545.1,1545.0,0.025]
[1744381619391,8.0413161,1545.1,1545.0,0.025]
[1744381619976,0.0645461,1545.1,1545.0,0.025]
[1744381620308,1.6191461,1545.3,1545.0,0.15738792]
[1744381620603,6.5362361,1545.2,1545.0,0.025]
[1744381620805,2.35006971,1545.2,1545.0,6.49746]
[1744381621005,0.0645461,1545.2,1545.1,0.13151979]
[1744381621177,10.301,1545.6,1545.1,0.13151979]
[1744381621178,0.0645461,1545.5,1545.1,0.13151979]
[1744381621374,0.0645461,1545.5,1545.2,6.47155]
[1744381621592,0.0645461,1545.5,1545.2,12.94303]
[1744381621802,0.0645461,1545.5,1545.3,6.60099388]
[1744381622109,50.428,1545.8,1545.4,6.47081]
[1744381622110,68.71304,1545.8,1545.4,6.47081]
[1744381622287,62.2438,1545.8,1545.5,6.59810842]
[1744381622483,10.302,1545.8,1545.5,13.06834842]
[1744381622671,6.46974,1545.7,1545.5,0.12804842]
[1744381623004,6.5344261,1545.7,1545.3,6.47102]
[1744381623304,6.47057,1545.5,1545.1,8.03493]
[1744381623511,1.5092,1545.6,1545.3,6.47107]
[1744381623707,1.5737461,1545.6,1545.4,6.4708]
[1744381623909,8.0441061,1545.6,1545.2,6.47124]
[1744381624079,6.47052,1545.5,1545.1,8.03506]
[1744381624278,8.0438961,1545.6,1545.3,6.47122]
[1744381624504,10.302,1545.8,1545.3,6.47106]
[1744381624707,6.5343461,1545.7,1545.3,6.47106]
[1744381624904,6.5343461,1545.7,1545.4,6.4708]
[1744381625208,1.6457,1545.9,1545.1,8.841066]
[1744381625209,1.6457,1545.9,1545.1,2.369006]
[1744381625389,0.0645461,1545.8,1545.5,6.47]
[1744381625601,0.0645461,1545.9,1545.6,6.46985]
[1744381625806,6.5332861,1545.9,1545.6,6.46982]
[1744381626000,12.113,1546.1,1545.5,6.47027]
[1744381626200,6.46892,1545.9,1545.5,6.47003]
[1744381626421,0.0645461,1545.8,1545.5,7.117033]
[1744381626627,0.0645461,1546.0,1545.5,0.647003]
[1744381626926,0.0645461,1546.0,1545.7,6.46943]
[1744381626927,6.46833,1546.0,1545.7,6.46943]
[1744381627105,0.0645461,1545.9,1545.7,6.4694]
[1744381627425,8.077,1546.1,1545.8,6.46908]
[1744381627730,6.5320961,1546.2,1545.8,6.46876]
[1744381627931,6.46823,1546.1,1545.7,14.386902]
[1744381628095,12.93631,1546.1,1545.7,7.917462]
[1744381628295,6.46831,1546.0,1545.7,6.46945]
[1744381628491,6.46862,1546.0,1545.6,8.01064]
[1744381628730,6.46862,1546.0,1545.5,7.117283]
[1744381628731,6.4692,1545.8,1545.5,6.47028]
[1744381628936,6.4692,1545.8,1545.4,12.9414]
[1744381629090,6.5343261,1545.7,1545.4,6.47073]
[1744381629291,0.64692,1545.8,1545.5,6.47025]
[1744381629526,0.0645461,1545.9,1545.7,6.46955]
[1744381629698,1.6603,1546.0,1545.8,6.46898]
[1744381630198,8.12884,1546.0,1545.6,6.46988]
[1744381630396,6.5333261,1545.9,1545.6,12.9397]
[1744381630612,0.0645461,1545.9,1545.4,6.47077]
[1744381630841,13.0023061,1545.9,1545.3,1.6129]
[1744381631025,13.0023061,1545.9,1545.5,6.47027]
[1744381631026,0.0645461,1545.9,1545.5,6.47027]
[1744381631230,0.0645461,1545.9,1545.3,2.46991622]
[1744381631231,0.0645461,1545.9,1545.7,6.46938]
[1744381631448,8.12867,1546.0,1545.7,6.46915]
[1744381631449,1.6603,1546.0,1545.7,6.46915]
[1744381631649,8.12891,1546.0,1545.6,6.4698]
[1744381631851,6.46946,1545.8,1545.3,2.46991622]
[1744381632052,6.47009,1545.6,1545.2,6.47147]
[1744381632219,0.0645461,1545.6,1545.4,6.47076]
[1744381632549,6.5345661,1545.6,1545.3,6.47098]
[1744381632748,0.0645461,1545.8,1545.3,6.47123]
[1744381633055,0.0645461,1545.8,1545.1,1.5233]
[1744381633255,8.12859,1545.7,1545.1,1.5233]
[1744381633551,0.0645461,1545.6,1545.2,0.12074632]
[1744381633723,8.12782,1545.9,1545.5,6.47024]
[1744381633923,1.659,1545.9,1545.6,6.46993]
[1744381634267,13.0031261,1545.8,1545.4,6.47067]
[1744381634466,7.77008261,1545.7,1545.4,6.47067]
[1744381634774,7.77008261,1545.7,1545.0,12.96981]
[1744381634775,8.10239,1545.5,1545.0,12.96981]
[1744381634923,6.47207,1545.1,1545.0,0.025]
[1744381635122,8.1686161,1545.1,1545.0,0.1477291]
[1744381635367,10.27982871,1545.1,1545.0,0.025]
[1744381636969,10.27982871,1545.1,1545.0,1e-05]
[1744381636970,10.28342871,1545.1,1545.0,1e-05]
[1744381637176,6.47406,1544.7,1544.3,6.4753]
[1744381637322,6.47542,1544.3,1544.2,0.394617]
[1744381637529,6.47518,1544.4,1544.2,0.394617]
[1744381637724,8.1313661,1544.3,1544.2,0.394617]
[1744381637965,7.75702,1543.3,1542.9,6.90441465]
[1744381638274,7.8215661,1543.3,1542.9,6.90441465]
[1744381638626,6.5441661,1543.3,1542.9,6.90441465]
[1744381638861,6.48004,1543.2,1542.9,6.90441465]
[1744381639056,16.98421,1543.4,1542.9,6.90441465]
[1744381639266,8.0979,1542.9,1542.8,9.19461899]
[1744381639573,8.0979,1542.9,1542.8,8.18128815]
[1744381639874,8.305621,1543.4,1542.8,14.66283815]
[1744381640043,8.0700261,1543.5,1543.0,6.48069]
[1744381640224,1.5912461,1543.5,1542.9,6.4811]
[1744381640429,0.0645461,1543.6,1543.3,6.47928]
[1744381640649,0.0645461,1543.6,1543.1,1.5011]
[1744381640836,0.0645461,1543.8,1543.4,6.47891]
[1744381641045,0.0645461,1543.8,1543.2,6.47995]
[1744381641244,0.0645461,1543.8,1543.1,7.98125]
[1744381641445,0.0645461,1543.8,1543.2,0.06478944]
[1744381641645,6.4784,1543.6,1543.2,6.47986]
[1744381641857,6.5429461,1543.6,1543.2,6.47983]
[1744381642157,12.45210638,1544.1,1543.2,6.47983]
[1744381642158,6.47799,1543.7,1543.2,6.47983]
[1744381642465,6.5430961,1543.6,1543.1,1.5011]
[1744381642764,0.0645461,1543.5,1543.1,7.98155]
[1744381642937,4.28629879,1543.9,1543.5,6.47854]
[1744381643459,10.76357879,1543.9,1543.5,6.3995266]
[1744381643665,4.28629879,1543.9,1543.8,6.47752]
[1744381644063,4.28629879,1543.9,1543.6,1.6294]
[1744381644361,10.82821489,1543.9,1543.5,6.4786]
[1744381644552,10.82821489,1543.9,1543.4,6.47917]
[1744381644752,6.47782,1543.8,1543.4,6.47917]
[1744381644951,0.0645461,1543.7,1543.4,6.47917]
[1744381645164,0.0645461,1544.0,1543.5,6.47859]
[1744381645337,6.47719,1543.9,1543.5,7.126449]
[1744381645531,6.47669,1544.0,1543.5,6.47857]
[1744381645737,0.0645461,1544.2,1543.6,0.06477795]
[1744381645961,6.47651,1544.1,1543.6,6.47796]
[1744381646268,6.47734,1543.9,1543.5,12.95752]
[1744381646571,6.47694,1544.0,1543.6,6.47836]
[1744381646859,6.47694,1544.0,1543.6,6.47813]
[1744381646860,6.47684,1544.0,1543.6,6.47813]
[1744381647029,0.0645461,1544.2,1543.9,6.47693]
[1744381647230,0.0645461,1544.4,1543.9,6.4771]
[1744381647475,11.40822479,1544.6,1543.9,6.4771]
[1744381647476,10.76070879,1544.6,1544.0,6.47668]
[1744381647677,10.76070879,1544.6,1544.2,6.4756]
[1744381647678,10.76069879,1544.6,1544.2,6.4756]
[1744381647860,4.28629879,1544.6,1544.3,6.47517]
[1744381648081,4.28629879,1544.6,1544.2,6.47577]
[1744381648082,12.94889,1544.6,1544.2,6.47577]
[1744381648261,4.28629879,1544.7,1544.3,0.06475001]
[1744381648574,4.28629879,1544.7,1544.3,1.6428]
[1744381648575,6.5389461,1544.6,1544.3,1.6428]
[1744381648738,17.23409879,1544.7,1544.3,8.11791]
[1744381648933,4.28629879,1544.7,1544.5,6.47445]
[1744381649163,4.28629879,1544.7,1544.4,6.47485]
[1744381649361,6.5387561,1544.6,1544.2,6.4757]
[1744381649569,13.0132861,1544.6,1544.2,6.4757]
[1744381649878,11.18873867,1544.7,1544.1,1.5075]
[1744381650085,6.5389661,1544.6,1544.1,1.5075]
[1744381650375,6.47472,1544.5,1544.1,7.98345]
[1744381650548,6.47425,1544.6,1544.1,1.5075]
[1744381650750,0.0645461,1544.7,1544.1,8.782151]
[1744381650937,6.47431,1544.6,1544.2,6.47556]
[1744381651141,6.47519,1544.4,1544.1,6.47606]
[1744381651341,1.5583,1544.6,1544.3,6.47541]
[1744381651544,8.0317,1544.8,1544.2,6.47584]
[1744381651743,0.0645461,1544.7,1544.4,6.47469]
[1744381651977,6.5374761,1544.9,1544.6,6.47401]
[1744381652155,6.5374761,1544.9,1544.3,1.5577]
[1744381652399,1.509,1545.1,1544.8,6.47297]
[1744381652702,4.35084489,1545.2,1544.9,6.47277]
[1744381653204,4.28629879,1545.2,1545.0,6.47236]
[1744381653578,4.28629879,1545.2,1545.0,6.47232]
[1744381653790,4.28629879,1545.2,1544.9,6.47286]
[1744381653958,4.35084489,1545.2,1544.8,6.47306]
[1744381654162,17.23028879,1545.2,1544.8,6.47306]
[1744381654513,10.75807879,1545.2,1544.9,12.94535]
[1744381654805,4.28629879,1545.2,1545.1,6.47207]
[1744381655012,6.7211,1545.4,1545.0,6.47248]
[1744381655013,6.7856461,1545.4,1545.0,12.94483]
[1744381655161,6.47159,1545.3,1544.9,6.47289]
[1744381655360,6.7854261,1545.4,1545.0,6.47232]
[1744381655605,0.25,1545.4,1545.2,6.4715]
[1744381655782,6.47182,1545.2,1544.9,6.47255]
[1744381656185,0.922051,1545.4,1544.9,6.47255]
[1744381656378,12.94464,1545.1,1544.7,8.02977]
[1744381656582,6.5374061,1545.0,1544.6,6.47402]
[1744381656777,6.47329,1544.9,1544.5,6.47452]
[1744381657073,6.47329,1544.9,1544.6,6.47394]
[1744381657498,6.5371261,1545.0,1544.4,8.10507]
[1744381657816,6.47338,1544.8,1544.4,15.390437]
[1744381657978,6.5385361,1544.7,1544.4,6.47486]
[1744381658298,12.94614,1544.9,1544.5,6.47443]
[1744381658507,0.0645461,1544.8,1544.4,6.47489]
[1744381658814,6.5379761,1544.8,1544.5,12.9489]
[1744381658991,6.5379761,1544.8,1544.5,6.47445]
[1744381659309,8.1162861,1544.8,1544.2,1.5378]
[1744381659527,12.94947,1544.5,1544.1,12.95235]
[1744381659798,12.95025,1544.4,1544.1,6.47623]
[1744381659998,6.47595,1544.2,1543.9,6.47698]
[1744381660169,6.47556,1544.3,1543.9,6.47697]
[1744381660504,6.47556,1544.3,1543.7,1.5606]
[1744381660505,6.47597,1544.2,1543.8,6.47737]
[1744381660804,6.4747,1544.5,1544.2,6.47568]
[1744381660986,0.0645461,1544.5,1543.7,1.5606]
[1744381661191,6.47519,1544.4,1544.0,6.47647]
[1744381661395,6.47519,1544.4,1544.1,6.47613]
[1744381661595,12.94938,1544.5,1544.2,6.47557]
[1744381661796,0.0645461,1544.4,1543.9,6.47679]
[1744381661996,6.5396261,1544.4,1544.1,6.47621]
[1744381662195,6.5396261,1544.4,1544.1,6.47613]
[1744381662413,14.408338,1544.5,1544.1,6.47613]
[1744381662580,6.47509,1544.4,1544.1,6.47613]
[1744381662897,7.933548,1544.5,1544.1,6.47613]
[1744381663079,6.47512,1544.4,1544.1,6.47613]
[1744381663274,0.0645461,1544.5,1544.3,6.47529]
[1744381663479,6.47475,1544.5,1543.9,6.4771]
[1744381663682,8.11415,1544.6,1544.3,6.4754]
[1744381663882,6.47343,1544.8,1544.5,6.47453]
[1744381664073,0.0645461,1544.8,1544.5,6.47453]
[1744381664376,0.0645461,1544.8,1544.3,6.47539]
[1744381664580,1.5479,1544.9,1544.1,22.26577]
[1744381664581,6.5371961,1545.0,1544.7,6.47374]
[1744381664910,12.37066489,1545.2,1544.9,6.47279]
[1744381665198,6.47209,1545.1,1544.8,6.47319]
[1744381665409,4.28629879,1545.2,1545.0,6.47235]
[1744381665774,4.28629879,1545.2,1544.8,6.47329]
[1744381665977,4.28629879,1545.2,1544.9,12.94556]
[1744381666171,10.82262489,1545.2,1544.8,6.4732]
[1744381666384,10.82262489,1545.2,1544.8,6.47332]
[1744381666385,6.47178,1545.2,1544.8,6.47332]
[1744381666697,6.47258,1545.0,1544.6,8.06059]
[1744381666868,12.94433,1545.1,1544.7,6.4736]
[1744381667071,0.0645461,1545.2,1544.8,6.4733]
[1744381667072,6.5362961,1545.2,1544.8,6.4733]
[1744381667268,6.47323,1544.9,1544.6,1.5866]
[1744381667570,6.47323,1544.9,1544.3,1.5866]
[1744381667571,6.4738,1544.7,1544.3,1.5866]
[1744381667766,0.0645461,1544.8,1544.3,1.5866]
[1744381668005,6.47323,1544.9,1544.6,6.47416]
[1744381668166,12.94632,1544.9,1544.5,6.47446]
[1744381668367,6.5379861,1544.8,1544.4,6.47488]
[1744381668586,6.47379,1544.7,1544.4,12.94975]
[1744381668766,6.47253,1545.0,1544.4,12.94974]
[1744381668981,6.47399,1544.7,1544.4,6.47487]
[1744381669701,6.47475,1544.5,1544.2,6.47571]
[1744381669902,6.47475,1544.5,1544.2,6.47578]
[1744381669903,6.47478,1544.5,1544.2,6.47578]
[1744381670121,12.94955,1544.5,1544.2,6.47578]
[1744381670420,6.47466,1544.5,1544.1,1.604]
[1744381670568,6.47434,1544.6,1544.3,12.9505]
[1744381670775,7.92621761,1544.6,1544.1,1.604]
[1744381670974,7.97993,1544.7,1544.1,1.604]
[1744381670975,1.5061,1544.7,1544.1,1.604]
[1744381671215,6.4746,1544.5,1544.2,12.95121]
[1744381671417,6.4746,1544.5,1544.2,6.4755]
[1744381671571,6.47512,1544.4,1544.1,8.08014]
[1744381671778,6.47469,1544.5,1544.2,6.47572]
[1744381672221,1.5706461,1544.7,1544.2,7.931426]
[1744381672377,6.47466,1544.5,1544.2,7.931306]
[1744381672572,1.5061,1544.7,1544.1,1.604]
[1744381672573,6.47428,1544.6,1544.1,1.604]
[1744381672811,6.47385,1544.7,1544.4,6.47489]
[1744381673114,6.47385,1544.7,1544.1,8.0802]
[1744381673115,0.0645461,1544.7,1544.3,6.47538]
[1744381673338,6.47417,1544.6,1544.1,1.604]
[1744381673478,1.643,1544.4,1543.9,6.47695]
[1744381673681,6.47622,1544.2,1543.8,14.51479]
[1744381673907,6.47622,1544.2,1543.9,6.47708]
[1744381674116,12.95116,1544.3,1543.9,6.47708]
[1744381674314,12.95189,1544.2,1543.8,15.966199]
[1744381674532,0.0645461,1544.3,1543.9,6.47696]
[1744381674533,6.47551,1544.3,1543.9,6.47696]
[1744381674831,6.47599,1544.2,1543.9,6.477]
[1744381675025,6.47546,1544.3,1543.9,6.477]
[1744381675225,7.3518521,1544.3,1543.9,6.47699]
[1744381675435,0.8763921,1544.3,1543.8,8.03731]
[1744381675604,6.47605,1544.2,1543.8,6.47741]
[1744381675805,6.47601,1544.2,1543.8,6.47741]
[1744381676020,6.47687,1544.0,1543.7,1.6261]
[1744381676220,6.5417861,1543.9,1543.6,6.47833]
[1744381676538,1.5697,1544.3,1544.0,6.47668]
[1744381676694,6.4746,1544.5,1544.2,6.47581]
[1744381676901,6.4746,1544.5,1544.2,12.9515]
[1744381677129,8.1084961,1544.6,1544.2,6.47569]
[1744381677329,6.47473,1544.5,1544.2,6.47569]
[1744381677547,1.6342461,1544.6,1544.1,6.47617]
[1744381677719,6.47533,1544.4,1544.0,6.47662]
[1744381677918,8.1086761,1544.6,1544.0,6.47662]
[1744381677919,6.4747,1544.5,1544.2,6.47569]
[1744381678138,6.47528,1544.4,1544.1,6.47617]
[1744381678329,6.47528,1544.4,1544.1,12.95234]
[1744381678507,8.04403,1544.6,1544.0,0.647662]
[1744381678841,8.04403,1544.6,1543.8,1.6261]
[1744381678842,6.47722,1543.9,1543.6,8.10416]
[1744381679041,1.5697,1544.3,1543.5,6.47875]
[1744381679042,1.5697,1544.5,1544.1,6.47614]
[1744381679340,6.47542,1544.3,1543.9,8.10309]
[1744381679514,6.5396561,1544.4,1544.0,6.4764]
[1744381679832,1.5697,1544.5,1543.9,8.10309]
[1744381679992,8.9133961,1544.5,1544.1,6.47585]
[1744381680193,2.37409,1544.5,1544.2,6.4756]
[1744381680398,1.5697,1544.5,1544.2,6.47574]
[1744381680607,8.11334,1544.7,1544.0,0.55]
[1744381680807,0.0645461,1544.6,1543.9,5.11412433]
[1744381681036,6.47523,1544.4,1544.0,6.47653]
[1744381681229,6.5400861,1544.3,1543.9,8.10302]
[1744381681433,0.0645461,1544.3,1544.0,6.47666]
[1744381681636,0.0645461,1544.3,1543.5,6.97483073]
[1744381681637,1.5948,1544.3,1543.6,7.99617]
[1744381681809,1.5948,1544.1,1543.2,0.798155]
[1744381682014,6.4785,1543.6,1543.2,6.48001]
[1744381682226,6.5435261,1543.5,1543.2,0.799791]
[1744381682420,6.5434861,1543.5,1543.2,0.799791]
[1744381682647,0.0645461,1543.4,1542.9,6.48115]
[1744381682955,6.48081,1543.1,1542.6,6.877147]
[1744381683106,6.5454861,1543.0,1542.6,0.394617]
[1744381683437,0.0645461,1543.1,1542.6,0.45943144]
[1744381683734,6.48105,1543.0,1542.6,6.826957]
[1744381683938,6.48105,1543.0,1542.6,7.6614427]